bitfinex/quotes_BTCUSD_20250219
["timestamp","ask_amount","ask_price","bid_price","bid_amount"]
[1739995724512,0.0004252,96556.0,96555.0,0.285351]
[1739995726458,0.0004252,96556.0,96555.0,0.13]
[1739995726618,0.0004252,96556.0,96555.0,0.285351]
[1739995728170,0.0004252,96556.0,96555.0,0.13]
[1739995728576,0.0004252,96556.0,96555.0,0.285351]
[1739995730240,0.0004252,96556.0,96548.0,0.20715]
[1739995730241,0.0004252,96556.0,96550.0,0.207144]
[1739995730393,0.0004252,96556.0,96548.0,0.0786]
[1739995730590,0.0004252,96556.0,96549.0,0.207148]
[1739995730790,0.0004252,96556.0,96555.0,0.155351]
[1739995731401,0.0014252,96556.0,96555.0,0.155351]
[1739995731604,0.0014252,96556.0,96555.0,0.33415465]
[1739995731809,0.0004252,96556.0,96555.0,0.38025465]
[1739995732300,0.0014252,96556.0,96555.0,0.38625465]
[1739995732717,0.0004252,96556.0,96555.0,0.38025465]
[1739995733375,0.0004252,96556.0,96555.0,0.38110485]
[1739995733614,0.0014252,96556.0,96555.0,0.38810485]
[1739995734239,0.0014252,96556.0,96555.0,0.70850485]
[1739995735574,0.0014252,96556.0,96555.0,0.87777642]
[1739995737587,0.0014252,96556.0,96555.0,0.88477642]
[1739995739777,2e-07,96556.0,96555.0,1.42817642]
[1739995740680,2e-07,96556.0,96555.0,1.42117642]
[1739995741130,2e-07,96556.0,96555.0,1.27117642]
[1739995741699,0.0004331,96566.0,96555.0,0.10342177]
[1739995741940,0.155344,96560.0,96555.0,0.02712177]
[1739995742156,0.0004331,96566.0,96555.0,0.0078502]
[1739995742356,0.1557671,96566.0,96558.0,0.155346]
[1739995742569,0.17625366,96566.0,96558.0,0.155346]
[1739995742879,0.02091966,96566.0,96555.0,0.0078502]
[1739995743086,0.207115,96565.0,96555.0,0.0078502]
[1739995743314,0.02091966,96566.0,96556.0,0.155349]
[1739995743469,0.155338,96564.0,96556.0,0.155349]
[1739995743674,0.02091966,96566.0,96556.0,0.155349]
[1739995743675,0.22803366,96566.0,96556.0,0.155349]
[1739995743878,0.02091966,96566.0,96555.0,0.0078502]
[1739995744631,0.155348,96557.0,96555.0,0.0138502]
[1739995744757,0.02091966,96566.0,96555.0,0.0138502]
[1739995744758,0.15535,96556.0,96555.0,0.0068502]
[1739995744970,0.15535,96556.0,96555.0,0.0098502]
[1739995745171,0.16989085,96556.0,96555.0,0.0098502]
[1739995745906,0.16989085,96556.0,96555.0,0.0058502]
[1739995746299,0.16989085,96556.0,96555.0,0.0008502]
[1739995746519,0.31989085,96556.0,96555.0,0.0008502]
[1739995746699,1.08896885,96556.0,96555.0,0.0008502]
[1739995746900,1.08897885,96556.0,96555.0,0.0008502]
[1739995747101,0.78259685,96556.0,96555.0,0.0068502]
[1739995747303,0.53234685,96556.0,96555.0,0.0008502]
[1739995747483,0.54858332,96556.0,96555.0,0.0008502]
[1739995748571,0.53252532,96556.0,96555.0,0.0008502]
[1739995748806,0.17653447,96556.0,96555.0,0.0008502]
[1739995749025,0.01623647,96556.0,96555.0,0.0008502]
[1739995750418,0.01623647,96556.0,96555.0,0.0018502]
[1739995750619,0.01623647,96556.0,96555.0,0.0008502]
[1739995750767,0.01623647,96556.0,96555.0,0.0028502]
[1739995750972,0.17158647,96556.0,96555.0,0.0028502]
[1739995751238,0.01623647,96556.0,96555.0,0.0028502]
[1739995751461,0.01623647,96556.0,96555.0,0.0038502]
[1739995753903,0.155346,96559.0,96555.0,0.0038502]
[1739995754127,0.155347,96558.0,96555.0,0.0038502]
[1739995754339,0.207118,96563.0,96555.0,0.0038502]
[1739995754340,0.155344,96560.0,96555.0,0.0038502]
[1739995754952,0.155344,96560.0,96555.0,0.0028502]
[1739995755319,0.155344,96560.0,96555.0,0.0008502]
[1739995755896,0.001,96560.0,96558.0,0.155345]
[1739995756099,0.001,96560.0,96557.0,0.155348]
[1739995756314,0.001,96560.0,96555.0,0.1562012]
[1739995756549,0.001,96560.0,96555.0,0.0008502]
[1739995756933,0.001,96560.0,96557.0,0.155348]
[1739995757108,0.0004251,96565.0,96555.0,0.0008502]
[1739995757310,0.1557611,96565.0,96555.0,0.0008502]
[1739995757521,0.001,96560.0,96555.0,0.0008502]
[1739995758068,0.0004251,96565.0,96555.0,0.1562012]
[1739995758228,0.0034251,96565.0,96555.0,0.0008502]
[1739995758429,0.0004255,96560.0,96555.0,0.0008502]
[1739995759147,0.0014255,96560.0,96556.0,0.155349]
[1739995759352,0.0014255,96560.0,96555.0,0.0008502]
[1739995760159,0.0004255,96560.0,96555.0,0.0008502]
[1739995760567,0.0004255,96560.0,96556.0,0.003]
[1739995760766,0.0004255,96560.0,96559.0,0.155345]
[1739995761015,0.0004255,96560.0,96558.0,0.155346]
[1739995761215,0.0004255,96560.0,96556.0,0.15535]
[1739995761431,0.0004255,96560.0,96555.0,0.0018502]
[1739995761652,0.0004255,96560.0,96559.0,0.155345]
[1739995762951,0.0004255,96560.0,96559.0,0.235745]
[1739995764256,0.0004255,96560.0,96559.0,0.243745]
[1739995764680,0.0004255,96560.0,96559.0,0.241745]
[1739995765060,0.0004255,96560.0,96559.0,0.247745]
[1739995770291,0.0004255,96560.0,96559.0,0.292845]
[1739995783301,0.0004255,96560.0,96559.0,0.1375]
[1739995783476,0.0004255,96560.0,96559.0,0.292845]
[1739995783901,0.0004255,96560.0,96559.0,0.247745]
[1739995784328,0.0004255,96560.0,96559.0,0.167345]
[1739995784504,0.0004255,96560.0,96559.0,0.155345]
[1739995784703,0.0004255,96560.0,96559.0,0.004]
[1739995785087,0.0004255,96560.0,96559.0,0.009]
[1739995785281,0.0004255,96560.0,96559.0,0.160345]
[1739995785779,0.0004255,96560.0,96559.0,0.164345]
[1739995786013,0.0004255,96560.0,96559.0,0.009]
[1739995786256,0.0004255,96560.0,96558.0,0.155345]
[1739995786458,0.0004255,96560.0,96559.0,0.011]
[1739995786959,0.0004255,96560.0,96559.0,0.006]
[1739995787192,0.0004255,96560.0,96559.0,0.167345]
[1739995787394,0.0004255,96560.0,96559.0,0.161345]
[1739995787611,0.0004255,96560.0,96559.0,0.155345]
[1739995787830,0.0004255,96560.0,96559.0,0.159345]
[1739995788075,0.0004255,96560.0,96559.0,0.155345]
[1739995788294,0.0004255,96560.0,96558.0,0.006]
[1739995788502,0.0004255,96560.0,96559.0,0.155345]
[1739995788701,0.0004255,96560.0,96559.0,0.161345]
[1739995789869,0.0004255,96560.0,96559.0,0.155345]
[1739995790704,0.0004255,96560.0,96559.0,0.238945]
[1739995790847,0.0004255,96560.0,96559.0,0.233945]
[1739995791051,0.0004255,96560.0,96559.0,0.245945]
[1739995793021,0.0004255,96560.0,96559.0,0.0906]
[1739995793218,0.0004255,96560.0,96559.0,0.245945]
[1739995793660,0.0004255,96560.0,96559.0,0.012]
[1739995794423,0.0004255,96560.0,96559.0,0.167345]
[1739995795265,0.0004255,96560.0,96559.0,0.012]
[1739995802725,0.0004255,96560.0,96559.0,0.167345]
[1739995802970,0.0004255,96560.0,96559.0,0.291745]
[1739995803476,0.0004255,96560.0,96559.0,0.1364]
[1739995803725,0.0004255,96560.0,96559.0,0.291745]
[1739995803948,0.0004255,96560.0,96559.0,0.1364]
[1739995804671,0.0004255,96560.0,96559.0,0.291745]
[1739995804995,0.0004255,96560.0,96559.0,0.1364]
[1739995805205,0.0004255,96560.0,96559.0,0.291745]
[1739995805407,0.0004255,96560.0,96559.0,0.1364]
[1739995805822,0.0004255,96560.0,96559.0,0.291745]
[1739995806168,0.0004255,96560.0,96559.0,0.1364]
[1739995806972,0.0004255,96560.0,96559.0,0.291745]
[1739995808665,0.0004255,96560.0,96559.0,0.39424865]
[1739995809281,0.0004255,96560.0,96559.0,0.38824865]
[1739995810679,0.0004255,96560.0,96559.0,0.39424865]
[1739995810948,0.0004255,96560.0,96559.0,0.38224865]
[1739995811261,0.0004255,96560.0,96559.0,0.39624865]
[1739995811584,0.0004255,96560.0,96559.0,0.38924865]
[1739995812012,0.0004255,96560.0,96559.0,0.39624865]
[1739995814335,0.0004255,96560.0,96559.0,0.71664865]
[1739995815995,5e-07,96560.0,96559.0,0.86664865]
[1739995816412,5e-07,96560.0,96559.0,0.87428865]
[1739995817047,5e-07,96560.0,96559.0,0.86728865]
[1739995817204,5e-07,96560.0,96559.0,0.87428865]
[1739995817441,5e-07,96560.0,96559.0,0.86728865]
[1739995817797,5e-07,96560.0,96559.0,0.86028865]
[1739995817996,5e-07,96560.0,96559.0,0.86728865]
[1739995818208,5e-07,96560.0,96559.0,0.87428865]
[1739995819204,5e-07,96560.0,96559.0,0.89349568]
[1739995820306,5e-07,96560.0,96559.0,1.43689568]
[1739995820928,5e-07,96560.0,96559.0,1.42925568]
[1739995821711,5e-07,96560.0,96559.0,1.42225568]
[1739995821911,5e-07,96560.0,96559.0,1.41525568]
[1739995822223,5e-07,96560.0,96559.0,1.42925568]
[1739995823595,5e-07,96560.0,96559.0,1.42225568]
[1739995823823,5e-07,96560.0,96559.0,1.42925568]
[1739995824027,5e-07,96560.0,96559.0,1.42225568]
[1739995824272,5e-07,96560.0,96559.0,1.41525568]
[1739995824476,5e-07,96560.0,96559.0,1.42925568]
[1739995824877,5e-07,96560.0,96559.0,1.42225568]
[1739995825290,5e-07,96560.0,96559.0,1.42925568]
[1739995826044,5e-07,96560.0,96559.0,1.42225568]
[1739995827387,5e-07,96560.0,96559.0,1.42925568]
[1739995827779,5e-07,96560.0,96559.0,1.42225568]
[1739995828597,5e-07,96560.0,96559.0,1.42925568]
[1739995829109,5e-07,96560.0,96559.0,1.43499819]
[1739995830074,5e-07,96560.0,96559.0,1.43584919]
[1739995838578,5e-07,96560.0,96559.0,1.28584919]
[1739995839182,5e-07,96560.0,96559.0,1.27884919]
[1739995839802,5e-07,96560.0,96559.0,1.27184919]
[1739995840006,5e-07,96560.0,96559.0,1.27884919]
[1739995840457,5e-07,96560.0,96559.0,1.28584919]
[1739995840873,5e-07,96560.0,96559.0,1.27184919]
[1739995841076,5e-07,96560.0,96559.0,1.27884919]
[1739995841279,5e-07,96560.0,96559.0,1.28584919]
[1739995841848,5e-07,96560.0,96559.0,1.15444919]
[1739995842248,5e-07,96560.0,96559.0,1.16144919]
[1739995842456,5e-07,96560.0,96559.0,1.15444919]
[1739995842638,5e-07,96560.0,96559.0,1.16144919]
[1739995842833,5e-07,96560.0,96559.0,1.15444919]
[1739995843246,5e-07,96560.0,96559.0,1.15570668]
[1739995843642,0.01772069,96560.0,96559.0,1.15570668]
[1739995844046,0.01772069,96560.0,96559.0,0.60530668]
[1739995844244,5e-07,96560.0,96559.0,0.61230668]
[1739995846190,5e-07,96560.0,96559.0,0.50980303]
[1739995846574,5e-07,96560.0,96559.0,0.35445803]
[1739995846780,5e-07,96560.0,96559.0,0.50980303]
[1739995846984,5e-07,96560.0,96559.0,0.49580303]
[1739995847189,5e-07,96560.0,96559.0,0.156196]
[1739995847394,5e-07,96560.0,96559.0,0.170196]
[1739995848174,5e-07,96560.0,96559.0,0.014851]
[1739995848375,5e-07,96560.0,96559.0,0.170196]
[1739995848832,5e-07,96560.0,96559.0,0.252896]
[1739995849175,5e-07,96560.0,96559.0,0.40039965]
[1739995849756,5e-07,96560.0,96559.0,0.297896]
[1739995849957,5e-07,96560.0,96559.0,0.170196]
[1739995850572,5e-07,96560.0,96559.0,0.014851]
[1739995850775,5e-07,96560.0,96559.0,0.170196]
[1739995850984,5e-07,96560.0,96559.0,0.014851]
[1739995851696,5e-07,96560.0,96559.0,0.170196]
[1739995852047,5e-07,96560.0,96559.0,0.163196]
[1739995852248,5e-07,96560.0,96559.0,0.011851]
[1739995852460,5e-07,96560.0,96559.0,0.004851]
[1739995852862,5e-07,96560.0,96559.0,0.008851]
[1739995853487,5e-07,96560.0,96559.0,0.004851]
[1739995853961,5e-07,96560.0,96559.0,0.000851]
[1739995854160,5e-07,96560.0,96559.0,0.011851]
[1739995854486,5e-07,96560.0,96559.0,0.005851]
[1739995854682,5e-07,96560.0,96559.0,0.000851]
[1739995854887,5e-07,96560.0,96559.0,0.156196]
[1739995855286,5e-07,96560.0,96559.0,0.159196]
[1739995855596,5e-07,96560.0,96559.0,0.156196]
[1739995855803,5e-07,96560.0,96559.0,0.160196]
[1739995856025,5e-07,96560.0,96559.0,0.004851]
[1739995856421,5e-07,96560.0,96559.0,0.000851]
[1739995856925,5e-07,96560.0,96559.0,0.009851]
[1739995856926,0.1914435,96560.0,96559.0,0.009851]
[1739995857129,0.50960836,96560.0,96559.0,0.004851]
[1739995857330,0.52414921,96560.0,96559.0,0.003851]
[1739995857530,0.39979521,96560.0,96559.0,0.000851]
[1739995857800,0.39979521,96560.0,96559.0,0.002851]
[1739995857996,5e-07,96560.0,96559.0,0.158196]
[1739995858193,5e-07,96560.0,96559.0,0.156196]
[1739995858423,5e-07,96560.0,96559.0,0.158196]
[1739995859058,5e-07,96560.0,96559.0,0.161196]
[1739995859270,5e-07,96560.0,96559.0,0.158196]
[1739995859670,5e-07,96560.0,96559.0,0.164196]
[1739995860387,5e-07,96560.0,96559.0,0.162196]
[1739995860610,5e-07,96560.0,96559.0,0.242696]
[1739995861401,5e-07,96560.0,96559.0,0.39179965]
[1739995862066,5e-07,96560.0,96559.0,0.41098479]
[1739995862411,5e-07,96560.0,96559.0,0.40498479]
[1739995862810,5e-07,96560.0,96559.0,0.41098479]
[1739995863059,5e-07,96560.0,96559.0,0.40498479]
[1739995863268,7e-07,96566.0,96565.0,0.155335]
[1739995863471,7e-07,96566.0,96565.0,0.53123865]
[1739995864432,7e-07,96566.0,96565.0,0.53823865]
[1739995865034,7e-07,96566.0,96565.0,0.55042379]
[1739995865232,7e-07,96566.0,96565.0,0.55742379]
[1739995865449,7e-07,96566.0,96565.0,0.56442379]
[1739995865691,7e-07,96566.0,96565.0,0.55742379]
[1739995865905,7e-07,96566.0,96565.0,0.56442379]
[1739995866300,7e-07,96566.0,96565.0,0.55742379]
[1739995866677,7e-07,96566.0,96565.0,0.56442379]
[1739995867325,7e-07,96566.0,96565.0,0.55742379]
[1739995867506,7e-07,96566.0,96565.0,0.56442379]
[1739995867944,7e-07,96566.0,96565.0,1.43594379]
[1739995868574,7e-07,96566.0,96565.0,1.42822379]
[1739995870796,7e-07,96566.0,96565.0,1.27822379]
[1739995871215,7e-07,96566.0,96565.0,1.05232014]
[1739995871440,7e-07,96566.0,96565.0,0.18852014]
[1739995872075,7e-07,96566.0,96565.0,0.169335]
[1739995872276,7e-07,96566.0,96565.0,0.162335]
[1739995872522,7e-07,96566.0,96565.0,0.155335]
[1739995872847,7e-07,96566.0,96565.0,0.169335]
[1739995874424,7e-07,96566.0,96565.0,0.014]
[1739995874629,0.1553347,96566.0,96565.0,0.014]
[1739995874833,7e-07,96566.0,96565.0,0.014]
[1739995875209,0.1553347,96566.0,96565.0,0.014]
[1739995875446,0.1553347,96566.0,96559.0,0.000851]
[1739995875447,0.155343,96560.0,96559.0,0.000851]
[1739995876052,0.1500007,96566.0,96559.0,0.000851]
[1739995876053,7e-07,96566.0,96565.0,0.155335]
[1739995876281,7e-07,96566.0,96565.0,0.158335]
[1739995876551,7e-07,96566.0,96565.0,0.154335]
[1739995877359,7e-07,96566.0,96565.0,0.155335]
[1739995878128,0.0004262,96566.0,96565.0,0.155335]
[1739995878306,0.0004262,96566.0,96565.0,0.157335]
[1739995880713,0.0004262,96566.0,96565.0,0.66183865]
[1739995881614,0.0004262,96566.0,96565.0,0.65983865]
[1739995881997,0.0004262,96566.0,96565.0,0.66583865]
[1739995882196,0.0004262,96566.0,96565.0,0.65883865]
[1739995882448,0.0004262,96566.0,96565.0,0.67083865]
[1739995882794,0.0004262,96566.0,96565.0,0.65883865]
[1739995883007,0.0004262,96566.0,96565.0,0.66583865]
[1739995883415,0.0004262,96566.0,96565.0,0.67283865]
[1739995883981,0.0004262,96566.0,96565.0,0.66583865]
[1739995884165,0.0004262,96566.0,96565.0,0.67283865]
[1739995884358,0.0004262,96566.0,96565.0,0.66583865]
[1739995884564,0.0004262,96566.0,96565.0,0.67283865]
[1739995889426,0.0004262,96566.0,96565.0,0.67368965]
[1739995890659,0.0004262,96566.0,96565.0,0.72358965]
[1739995890996,2e-07,96566.0,96565.0,0.72358965]
[1739995891172,2e-07,96566.0,96565.0,1.41698965]
[1739995891726,2e-07,96566.0,96565.0,1.4262728]
[1739995891928,2e-07,96566.0,96565.0,1.43850658]
[1739995892141,2e-07,96566.0,96565.0,1.44550658]
[1739995892340,2e-07,96566.0,96565.0,1.45250658]
[1739995892772,2e-07,96566.0,96565.0,1.44550658]
[1739995893031,2e-07,96566.0,96565.0,1.45250658]
[1739995893225,2e-07,96566.0,96565.0,1.43622343]
[1739995894342,2e-07,96566.0,96565.0,1.45270402]
[1739995894943,2e-07,96566.0,96565.0,1.43622343]
[1739995896249,2e-07,96566.0,96565.0,1.45321007]
[1739995896451,2e-07,96566.0,96565.0,1.43397629]
[1739995908353,2e-07,96566.0,96565.0,1.41698965]
[1739995908554,2e-07,96566.0,96565.0,0.67368965]
[1739995909235,2e-07,96566.0,96565.0,0.66668965]
[1739995909597,2e-07,96566.0,96565.0,0.67368965]
[1739995910857,2e-07,96566.0,96565.0,0.65968965]
[1739995911062,2e-07,96566.0,96565.0,0.67368965]
[1739995911461,2e-07,96566.0,96565.0,0.65968965]
[1739995911663,2e-07,96566.0,96565.0,0.66668965]
[1739995911864,1.20979392,96565.0,96563.0,0.207117]
[1739995912067,1.20979392,96565.0,96564.0,0.155337]
[1739995913426,1.20979392,96565.0,96561.0,0.207121]
[1739995913630,1.20979392,96565.0,96564.0,0.155337]
[1739995913805,1.20979392,96565.0,96564.0,0.25784065]
[1739995914210,1.20979392,96565.0,96564.0,0.26484065]
[1739995914414,1.21079392,96565.0,96564.0,0.27184065]
[1739995915858,1.21079392,96565.0,96564.0,0.59224065]
[1739995921198,1.20075392,96565.0,96564.0,0.59224065]
[1739995921436,1.20075392,96565.0,96564.0,0.014]
[1739995921648,1.35608892,96565.0,96564.0,0.014]
[1739995922203,1.35608892,96565.0,96564.0,0.007]
[1739995922611,0.155343,96560.0,96559.0,0.000851]
[1739995923022,0.155342,96562.0,96559.0,0.000851]
[1739995923200,0.207116,96564.0,96559.0,0.000851]
[1739995923339,0.155343,96560.0,96559.0,0.000851]
[1739995923772,0.237443,96560.0,96559.0,0.000851]
[1739995924170,0.55434309,96560.0,96559.0,0.000851]
[1739995924389,0.89609809,96560.0,96559.0,0.000851]
[1739995924590,0.78786809,96560.0,96559.0,0.001851]
[1739995924913,0.78786809,96560.0,96559.0,0.000851]
[1739995925247,0.59848394,96560.0,96559.0,0.000851]
[1739995925445,0.15,96552.0,96545.0,7.267e-05]
[1739995925647,0.264566,96546.0,96545.0,7.267e-05]
[1739995925847,0.87558254,96546.0,96545.0,7.267e-05]
[1739995926082,0.51579154,96546.0,96545.0,7.267e-05]
[1739995927187,0.66188979,96546.0,96545.0,7.267e-05]
[1739995927387,0.78063126,96546.0,96545.0,7.267e-05]
[1739995927795,0.78163126,96546.0,96545.0,7.267e-05]
[1739995928383,0.78363126,96546.0,96545.0,7.267e-05]
[1739995928888,0.78163126,96546.0,96545.0,7.267e-05]
[1739995929062,0.78363126,96546.0,96545.0,7.267e-05]
[1739995929622,0.155387,96533.0,96532.0,0.0008504]
[1739995929838,0.31856912,96533.0,96532.0,0.0008504]
[1739995930024,0.46856912,96533.0,96532.0,0.0008504]
[1739995930240,0.49934983,96533.0,96532.0,0.0008504]
[1739995930449,1.32533083,96533.0,96532.0,0.0008504]
[1739995930700,1.08507583,96533.0,96532.0,0.0008504]
[1739995930855,0.78333983,96533.0,96532.0,0.0012835]
[1739995931068,0.46955898,96533.0,96532.0,0.0022835]
[1739995931272,0.32942198,96533.0,96532.0,0.0022835]
[1739995931482,0.48480898,96533.0,96532.0,0.0022835]
[1739995934562,0.58731263,96533.0,96532.0,0.0022835]
[1739995934704,0.82038998,96533.0,96532.0,0.0022835]
[1739995934907,0.62244998,96533.0,96532.0,0.0022835]
[1739995935109,0.01623986,96533.0,96532.0,0.1576715]
[1739995935381,0.12844825,96546.0,96532.0,0.0022835]
[1739995935664,0.155374,96542.0,96532.0,0.0022835]
[1739995935836,0.08714069,96541.0,96532.0,0.0022835]
[1739995936083,0.08714069,96541.0,96532.0,0.1576705]
[1739995936284,0.08714069,96541.0,96532.0,0.0022835]
[1739995936497,0.08714069,96541.0,96536.0,0.155382]
[1739995936667,0.08714069,96541.0,96532.0,0.0022835]
[1739995937212,0.08714069,96541.0,96533.0,0.155387]
[1739995937474,0.08714069,96541.0,96532.0,0.0012835]
[1739995937679,0.24251569,96541.0,96533.0,0.155386]
[1739995937881,0.003,96546.0,96540.0,0.155375]
[1739995938087,0.002,96541.0,96538.0,0.155377]
[1739995938296,0.002,96541.0,96534.0,0.155384]
[1739995938498,0.002,96541.0,96532.0,0.0012835]
[1739995938499,0.004,96541.0,96532.0,0.0012835]
[1739995938700,0.02023832,96541.0,96532.0,0.0012835]
[1739995938877,0.01823832,96541.0,96532.0,0.0012835]
[1739995939187,0.155387,96533.0,96532.0,0.0012835]
[1739995939393,0.24276912,96533.0,96532.0,0.0012835]
[1739995939604,0.24276912,96533.0,96532.0,0.0022835]
[1739995940365,0.08738212,96533.0,96532.0,0.0022835]
[1739995940946,0.08738212,96533.0,96532.0,0.0012835]
[1739995941155,0.01823832,96541.0,96532.0,0.0022835]
[1739995941383,0.155376,96540.0,96532.0,0.0022835]
[1739995941699,0.155376,96540.0,96532.0,0.0042835]
[1739995942125,0.10340583,96541.0,96532.0,0.0012835]
[1739995942334,0.10340583,96541.0,96533.0,0.155386]
[1739995942738,0.25877983,96541.0,96532.0,0.1566715]
[1739995942941,0.10340583,96541.0,96532.0,0.1586705]
[1739995943121,0.155376,96540.0,96532.0,0.1586705]
[1739995943325,0.10340583,96541.0,96532.0,0.1586705]
[1739995943517,0.10340583,96541.0,96532.0,0.0052835]
[1739995943754,0.10340583,96541.0,96533.0,0.155386]
[1739995944123,0.25878083,96541.0,96532.0,0.1566715]
[1739995944332,0.10340583,96541.0,96533.0,0.001]
[1739995944663,0.10340583,96541.0,96532.0,0.1586705]
[1739995944805,0.10340583,96541.0,96532.0,0.1566705]
[1739995945005,0.10340583,96541.0,96533.0,0.004]
[1739995945245,0.25877983,96541.0,96533.0,0.004]
[1739995945439,0.25877983,96541.0,96540.0,0.155376]
[1739995945440,0.01623832,96541.0,96540.0,0.155376]
[1739995946281,0.01623832,96541.0,96535.0,0.0484]
[1739995946483,0.01623832,96541.0,96536.0,0.207176]
[1739995946735,0.01619272,96541.0,96540.0,0.155376]
[1739995947287,0.02110742,96554.0,96553.0,0.155355]
[1739995947492,0.02110742,96554.0,96547.0,0.155364]
[1739995947655,0.02110742,96554.0,96541.0,0.207165]
[1739995947656,0.02110742,96554.0,96548.0,0.155362]
[1739995948050,0.16454085,96564.0,96540.0,0.003]
[1739995948308,0.08633603,96563.0,96539.0,0.20717]
[1739995948627,0.002,96554.0,96551.0,0.155356]
[1739995948823,0.002,96554.0,96552.0,0.155355]
[1739995949055,0.002,96554.0,96546.0,0.207155]
[1739995949234,0.003,96554.0,96553.0,0.155355]
[1739995949812,0.001,96554.0,96553.0,0.155355]
[1739995950414,0.08633603,96563.0,96553.0,0.155355]
[1739995950613,0.10752027,96563.0,96553.0,0.155354]
[1739995950813,0.10752027,96563.0,96545.0,0.0763]
[1739995951040,0.10752027,96563.0,96546.0,0.207155]
[1739995951270,0.10752027,96563.0,96545.0,0.0763]
[1739995951514,0.10752027,96563.0,96557.0,0.155347]
[1739995951719,0.01623518,96564.0,96563.0,0.155339]
[1739995951894,0.0004255,96565.0,96564.0,0.155337]
[1739995952641,0.0004255,96565.0,96564.0,0.231637]
[1739995953910,0.0004255,96565.0,96564.0,0.237637]
[1739995954114,0.0004255,96565.0,96564.0,0.70984065]
[1739995954311,0.0004255,96565.0,96564.0,0.70584065]
[1739995954671,0.0004255,96565.0,96564.0,0.71084065]
[1739995954933,0.0004255,96565.0,96564.0,0.69984065]
[1739995955173,0.0004255,96565.0,96564.0,0.70684065]
[1739995955378,0.0014255,96565.0,96564.0,0.70684065]
[1739995955580,0.0004255,96565.0,96564.0,0.69984065]
[1739995955783,0.0014255,96565.0,96564.0,0.70684065]
[1739995956163,0.0014255,96565.0,96564.0,0.71384065]
[1739995956590,0.0014255,96565.0,96564.0,0.70684065]
[1739995956980,0.0004255,96565.0,96564.0,0.70684065]
[1739995957409,0.0014255,96565.0,96564.0,0.71384065]
[1739995957607,0.0004255,96565.0,96564.0,0.70684065]
[1739995957809,0.0004255,96565.0,96564.0,0.71384065]
[1739995958015,0.0014255,96565.0,96564.0,0.71384065]
[1739995959298,0.0014255,96565.0,96564.0,0.611337]
[1739995959503,0.0014255,96565.0,96564.0,0.3797]
[1739995959730,0.0014255,96565.0,96564.0,0.3344]
[1739995960150,0.0004255,96565.0,96564.0,0.155337]
[1739995960529,0.0004255,96565.0,96564.0,0.169337]
[1739995960530,0.0014255,96565.0,96564.0,0.169337]
[1739995960732,0.0004255,96565.0,96564.0,0.162337]
[1739995960938,0.0004255,96565.0,96564.0,0.159337]
[1739995961360,0.0004255,96565.0,96564.0,0.161337]
[1739995961573,0.0014255,96565.0,96564.0,0.39764065]
[1739995962745,0.0014255,96565.0,96564.0,0.39164065]
[1739995962946,0.0014255,96565.0,96564.0,0.39764065]
[1739995963151,0.0004255,96565.0,96564.0,0.39164065]
[1739995963374,0.0014255,96565.0,96564.0,0.39264065]
[1739995963574,0.0014255,96565.0,96564.0,0.38564065]
[1739995963825,0.0014255,96565.0,96564.0,0.39264065]
[1739995964036,0.0024255,96565.0,96564.0,0.39964065]
[1739995965966,0.0024255,96565.0,96564.0,0.72004065]
[1739995971336,0.47971327,96564.0,96563.0,0.08307761]
[1739995971511,0.47971327,96564.0,96563.0,0.34092026]
[1739995972495,0.48071327,96564.0,96563.0,0.34792026]
[1739995973551,0.48071327,96564.0,96563.0,0.49792026]
[1739995973699,0.0004255,96565.0,96564.0,0.305337]
[1739995973700,7.7e-07,96565.0,96564.0,0.305337]
[1739995973906,4.404e-05,96565.0,96564.0,0.40784065]
[1739995974108,4.404e-05,96565.0,96564.0,0.51704065]
[1739995974314,4.404e-05,96565.0,96564.0,0.53294065]
[1739995974712,0.00104404,96565.0,96564.0,0.53794065]
[1739995975388,0.00104404,96565.0,96564.0,0.85834065]
[1739995975563,0.00204404,96565.0,96564.0,0.86234065]
[1739995976818,0.00204404,96565.0,96564.0,0.86998065]
[1739995977880,0.00204404,96565.0,96564.0,0.89105127]
[1739995983585,0.00204404,96565.0,96564.0,0.86998065]
[1739995984944,2.4e-07,96580.0,96579.0,0.433913]
[1739995985153,8.4e-07,96588.0,96587.0,0.4539]
[1739995985360,8.4e-07,96588.0,96587.0,1.44020365]
[1739995985766,8.4e-07,96588.0,96587.0,1.42020365]
[1739995985940,8.4e-07,96588.0,96587.0,1.40020365]
[1739995986148,8.4e-07,96588.0,96587.0,1.40784365]
[1739995986688,8.4e-07,96588.0,96587.0,1.42784365]
[1739995986986,8.4e-07,96588.0,96587.0,1.41484365]
[1739995987193,0.00100084,96588.0,96587.0,1.42184365]
[1739995987405,0.00100084,96588.0,96587.0,1.41484365]
[1739995987626,8.4e-07,96588.0,96587.0,1.40784365]
[1739995987839,8.4e-07,96588.0,96587.0,1.41484365]
[1739995988486,8.4e-07,96588.0,96587.0,1.41514397]
[1739995988817,8.4e-07,96588.0,96587.0,1.42214397]
[1739995989663,8.4e-07,96588.0,96587.0,0.3344]
[1739995989998,8.4e-07,96588.0,96587.0,0.4897]
[1739995990559,8.4e-07,96588.0,96587.0,0.4757]
[1739995990770,8.4e-07,96588.0,96587.0,0.4817]
[1739995992016,8.4e-07,96588.0,96587.0,0.4877]
[1739995992190,8.4e-07,96588.0,96587.0,0.4817]
[1739995992573,8.4e-07,96588.0,96587.0,0.4887]
[1739995992933,8.4e-07,96588.0,96587.0,0.007]
[1739995993101,8.4e-07,96588.0,96587.0,0.1693]
[1739995998426,8.4e-07,96588.0,96587.0,0.014]
[1739995998590,8.4e-07,96588.0,96587.0,0.1693]
[1739995999132,0.01444266,96588.0,96587.0,0.1693]
[1739995999352,0.01444266,96588.0,96587.0,0.1553]
[1739995999565,0.01444266,96588.0,96587.0,0.1613]
[1739995999768,8.4e-07,96588.0,96587.0,0.1673]
[1739996000178,8.4e-07,96588.0,96587.0,0.1613]
[1739996000323,8.4e-07,96588.0,96587.0,0.011]
[1739996000527,0.01454959,96588.0,96587.0,0.1663]
[1739996000731,0.01454959,96588.0,96587.0,0.017]
[1739996002666,0.16984759,96588.0,96587.0,0.017]
[1739996002876,0.27235124,96588.0,96587.0,0.017]
[1739996003101,0.288581,96588.0,96587.0,0.017]
[1739996003333,0.288581,96588.0,96587.0,0.012]
[1739996003571,0.155313,96580.0,96569.0,0.155328]
[1739996003793,0.207067,96587.0,96564.0,0.000851]
[1739996004087,0.10250365,96586.0,96564.0,0.000851]